bitfinex-derivatives/quotes_ETHF0:USTF0_20250904
["timestamp","ask_amount","ask_price","bid_price","bid_amount"]
[1756969566106,0.88162008,4374.1,4374.0,0.6013]
[1756969566702,0.88162008,4374.1,4374.0,0.8101]
[1756969566908,0.72402008,4374.1,4374.0,0.8101]
[1756969567500,9.59682008,4374.1,4374.0,0.8101]
[1756969569108,9.67562008,4374.1,4374.0,0.4101]
[1756969569303,9.72492008,4374.1,4374.0,0.2963]
[1756969569603,0.0493,4373.5,4373.1,0.2963]
[1756969569805,1.79894605,4373.2,4373.1,0.1699]
[1756969570108,2.69866613,4373.2,4373.1,0.1699]
[1756969570806,2.52296613,4373.2,4373.1,0.3611]
[1756969571008,2.52296613,4373.2,4373.1,0.5699]
[1756969571308,0.88162008,4373.2,4373.1,0.5699]
[1756969573106,0.88220107,4373.2,4373.1,0.5699]
[1756969574415,0.80340107,4373.2,4373.1,0.5699]
[1756969577007,1.01280107,4373.2,4373.1,0.5699]
[1756969577208,0.5212,4373.2,4373.1,0.3611]
[1756969577408,1.01260707,4373.2,4372.5,0.1138]
[1756969577609,0.1955,4372.6,4372.5,0.5021]
[1756969578006,0.1955,4372.6,4372.5,0.8105]
[1756969578701,0.1955,4372.6,4372.5,0.6134]
[1756969578702,0.5803,4372.6,4372.5,0.6134]
[1756969579012,0.1955,4372.6,4372.5,0.8105]
[1756969579207,0.4049,4373.1,4373.0,0.307]
[1756969579408,0.89634219,4373.1,4373.0,0.8125]
[1756969580413,0.68694219,4373.1,4373.0,0.8125]
[1756969580613,1.07174219,4373.1,4373.0,0.6154]
[1756969580910,1.07174219,4373.1,4372.5,0.1138]
[1756969581101,0.49144219,4373.0,4372.5,0.1138]
[1756969581306,0.5803,4372.6,4372.5,0.4222]
[1756969581608,1.30474219,4372.6,4372.5,0.6134]
[1756969581807,1.12934219,4372.6,4372.5,0.6134]
[1756969582114,1.12934219,4372.6,4372.5,0.8105]
[1756969584216,1.30474219,4372.6,4372.0,0.1138]
[1756969584414,1.30474219,4372.6,4372.0,0.305]
[1756969584415,0.4049,4372.1,4372.0,0.305]
[1756969584612,0.8133,4372.1,4371.5,0.1138]
[1756969584916,0.4049,4371.6,4371.5,0.8105]
[1756969585119,0.6379,4371.6,4371.5,0.8105]
[1756969585614,0.6379,4371.6,4371.5,0.6154]
[1756969585814,0.6379,4371.6,4371.5,0.3084]
[1756969585815,0.8133,4371.6,4371.5,0.3084]
[1756969586012,1.12868647,4371.6,4371.5,0.6154]
[1756969586514,1.12868647,4371.6,4371.5,0.8125]
[1756969588220,1.12830744,4371.6,4371.5,0.8125]
[1756969588821,0.91890744,4371.6,4371.5,0.8125]
[1756969589321,0.91892648,4371.6,4371.5,0.8125]
[1756969590020,0.233,4371.6,4371.5,0.8125]
[1756969592015,1.64151479,4372.1,4371.5,0.8125]
[1756969592016,1.64151479,4372.1,4372.0,0.4242]
[1756969592216,2.36536649,4372.1,4372.0,0.8125]
[1756969593523,0.7238517,4372.1,4372.0,0.8125]
[1756969594326,0.233,4372.1,4372.0,0.8125]
[1756969594623,0.4285,4372.1,4372.0,0.8125]
[1756969596225,0.6379,4372.1,4372.0,0.8125]
[1756969599329,0.4285,4372.1,4372.0,0.8125]
[1756969599620,0.233,4372.1,4372.0,0.8125]
[1756969602726,0.8101,4372.1,4372.0,0.3084]
[1756969602926,0.8101,4372.1,4372.0,0.5052]
[1756969603226,0.8101,4372.1,4372.0,0.6284]
[1756969603527,0.8101,4372.1,4372.0,0.3084]
[1756969604021,0.8101,4372.1,4371.6,0.2955]
[1756969604218,0.4057,4371.7,4371.5,0.1158]
[1756969604421,0.5812,4371.6,4371.5,0.3126]
[1756969604724,0.4057,4371.6,4371.5,0.3126]
[1756969604925,0.4057,4371.6,4371.5,0.8043]
[1756969610526,0.233,4372.1,4371.5,0.5088]
[1756969610720,0.233,4372.1,4372.0,0.8117]
[1756969611126,0.4326,4372.1,4372.0,0.8117]
[1756969612837,0.9254252,4372.1,4372.0,0.8117]
[1756969613037,0.92542559,4372.1,4372.0,0.8117]
[1756969615539,0.49282559,4372.1,4372.0,0.8117]
[1756969618839,0.89852559,4372.1,4372.0,0.8117]
[1756969619042,1.07402559,4372.1,4372.0,0.8117]
[1756969619636,0.89852559,4372.1,4372.0,0.8117]
[1756969620542,0.49282559,4372.1,4372.0,0.8117]
[1756969620741,0.49332305,4372.1,4372.0,0.8117]
[1756969621042,0.69292305,4372.1,4372.0,0.8117]
[1756969621636,1.07452305,4372.1,4372.0,0.2955]
[1756969621838,0.5812,4371.7,4371.6,0.2955]
[1756969622138,1.13202305,4371.7,4371.1,0.2955]
[1756969622342,2.41042795,4371.2,4371.1,0.4923]
[1756969622536,3.136751,4371.2,4371.1,0.6885]
[1756969623444,3.13654823,4371.2,4371.1,0.6885]
[1756969624041,0.72612028,4371.2,4371.1,0.6885]
[1756969624344,0.49312028,4371.2,4371.1,0.6885]
[1756969624640,0.49312028,4371.2,4371.1,6.92199795]
[1756969624844,0.49312028,4371.2,4371.1,4.6885]
[1756969625444,0.49312028,4371.2,4371.1,6.92199795]
[1756969625950,8.794,4371.9,4371.1,6.92199795]
[1756969626141,0.49300847,4371.8,4371.7,0.393]
[1756969626446,0.49300847,4371.8,4371.7,0.6885]
[1756969626845,0.17730847,4371.8,4371.7,2.69322795]
[1756969627039,0.233,4372.3,4372.2,0.6885]
[1756969627236,0.233,4372.7,4372.2,0.393]
[1756969627439,2.43732795,4372.7,4372.6,0.6885]
[1756969627642,2.74492795,4372.7,4372.6,0.6885]
[1756969628049,2.95102795,4372.7,4372.6,0.6885]
[1756969628751,2.95102795,4372.7,4372.6,0.1968]
[1756969629245,2.95102795,4372.7,4372.1,0.2955]
[1756969629440,2.71802795,4372.4,4372.3,0.6885]
[1756969629644,2.43732795,4372.4,4372.3,0.6885]
[1756969630240,2.74492795,4372.4,4372.3,0.6885]
[1756969630549,2.95102795,4372.4,4372.3,0.6885]
[1756969631450,0.9463,4372.4,4372.3,0.6885]
[1756969632446,0.4326,4372.4,4372.3,0.6885]
[1756969632752,0.1996,4372.4,4372.3,0.6885]
[1756969633048,0.233,4372.7,4372.5,0.1141]
[1756969633252,0.233,4372.7,4372.6,0.7166]
[1756969633641,0.2977,4372.9,4372.7,0.3124]
[1756969633841,0.702,4372.9,4372.8,0.7166]
[1756969635940,0.702,4372.9,4372.6,0.3124]
[1756969635941,2.70672795,4372.9,4372.6,0.3124]
[1756969636140,0.702,4372.9,4372.8,0.7166]
[1756969636346,0.2058,4372.9,4372.8,0.7166]
[1756969636541,8.794,4373.0,4372.9,0.3124]
[1756969636752,8.794,4373.0,4372.9,0.7166]
[1756969640848,8.9998,4373.0,4372.9,0.7166]
[1756969641655,0.2058,4373.0,4372.9,0.7166]
[1756969642255,0.233,4373.4,4373.3,0.7166]
[1756969642452,0.4388,4373.4,4373.3,0.7166]
[1756969642653,0.5035,4373.4,4373.3,0.7166]
[1756969642851,0.702,4373.4,4373.3,0.2056]
[1756969643048,0.1166,4373.0,4372.8,0.3124]
[1756969643254,0.8186,4373.0,4372.9,0.4042]
[1756969643453,0.5209,4373.0,4372.3,2.00472795]
[1756969643654,0.4143,4372.5,4372.4,0.233]
[1756969644048,0.4143,4372.5,4372.3,2.00472795]
[1756969644253,0.1166,4372.5,4372.4,0.233]
[1756969644758,0.6201,4372.5,4372.4,0.233]
[1756969645256,0.2977,4372.4,4372.3,2.00472795]
[1756969645452,0.2977,4372.3,4372.0,3.23772727]
[1756969645659,0.2977,4372.3,4372.1,0.233]
[1756969648562,0.8186,4372.0,4371.8,1.23299932]
[1756969648861,0.8186,4371.5,4371.2,1.23299932]
[1756969649062,0.2058,4370.7,4370.6,1.23299932]
[1756969649265,0.2058,4370.7,4370.3,34.95772795]
[1756969649266,0.6201,4370.5,4370.4,1.23299932]
[1756969649453,0.8186,4370.5,4370.4,0.233]
[1756969649654,0.4043,4370.2,4370.1,1.23299932]
[1756969649852,0.3224,4370.0,4369.8,1.23299932]
[1756969650063,0.4143,4370.0,4369.9,0.233]
[1756969654171,0.1166,4371.0,4370.4,0.3286]
[1756969654467,0.094,4371.6,4370.6,0.518]
[1756969654468,2.12132795,4371.5,4370.6,0.518]
[1756969654668,2.12132795,4371.5,4370.6,0.4042]
[1756969654968,2.00472795,4371.5,4370.6,0.4042]
[1756969655366,2.00472795,4371.5,4370.5,0.3471]
[1756969655367,2.00472795,4371.5,4370.8,0.518]
[1756969655567,2.00472795,4371.5,4370.9,0.3124]
[1756969655768,2.00472795,4371.5,4371.0,0.1141]
[1756969655970,2.00472795,4371.5,4371.1,0.3124]
[1756969656767,2.00472795,4371.5,4371.0,0.1141]
[1756969657163,2.00472795,4371.5,4371.1,0.3124]
[1756969657364,2.00472795,4371.5,4371.0,0.1141]
[1756969657663,0.094,4371.6,4371.0,0.1141]
[1756969657664,1.64212833,4371.2,4371.1,0.3124]
[1756969659166,1.64212833,4371.5,4371.1,0.4042]
[1756969659373,9.027,4372.3,4371.5,0.3197]
[1756969659567,1.64212833,4372.1,4372.0,0.4265]
[1756969659870,2.12993492,4372.1,4372.0,0.4265]
[1756969660671,1.64212833,4372.1,4372.0,0.4265]
[1756969661361,9.027,4372.3,4372.1,0.3124]
[1756969661362,1.64212833,4372.2,4372.1,0.3124]
[1756969661566,1.64212833,4372.2,4372.1,0.518]
[1756969663270,1.64212833,4372.2,4372.1,0.3124]
[1756969665770,8.794,4372.3,4372.2,0.3144]
[1756969665963,8.794,4372.3,4372.2,0.5153]
[1756969666678,8.794,4372.3,4372.2,0.7222]
[1756969667568,1.64212833,4373.0,4372.2,0.7222]
[1756969667768,1.64212833,4373.3,4373.0,0.3257]
[1756969667968,1.64212833,4373.6,4373.5,0.1248]
[1756969668173,2.36309013,4373.6,4373.5,0.6401]
[1756969668368,1.87512833,4373.6,4373.5,0.6401]
[1756969668674,0.233,4373.8,4373.6,0.3144]
[1756969668869,2.13010135,4373.7,4373.6,0.3144]
[1756969669875,2.13010135,4373.7,4373.5,0.4392]
[1756969670070,1.64212833,4373.7,4373.0,0.1248]
[1756969670272,1.64212833,4373.3,4373.1,0.2009]
[1756969670478,1.64212833,4373.3,4373.2,0.3144]
[1756969670669,1.64212833,4373.3,4373.2,0.5153]
[1756969671078,1.64212833,4373.3,4373.0,0.1248]
[1756969671274,0.233,4373.2,4372.5,0.1248]
[1756969671484,1.64212833,4372.7,4372.5,0.1248]
[1756969671775,1.64212833,4372.7,4372.6,0.3144]
[1756969674475,1.64212833,4372.7,4372.5,0.4392]
[1756969675168,1.64212833,4372.7,4372.5,0.1248]
[1756969675372,1.64212833,4372.7,4372.6,0.3144]
[1756969678975,0.233,4373.2,4372.6,0.3144]
[1756969679175,0.233,4373.2,4372.5,0.1248]
[1756969679176,1.64212833,4372.7,4372.5,0.1248]
[1756969679376,1.64212833,4372.7,4372.6,0.3144]
[1756969680486,2.13251674,4372.7,4372.2,0.3144]
[1756969680786,1.64212833,4372.3,4372.2,0.3144]
[1756969683584,1.64212833,4372.3,4372.2,0.5153]
[1756969687374,0.232,4372.6,4372.2,0.2009]
[1756969687577,0.49117708,4372.5,4372.4,0.3144]
[1756969688483,0.49117708,4372.5,4372.4,0.5153]
[1756969688686,2.13330541,4372.5,4372.4,0.5153]
[1756969689783,2.13330541,4372.5,4372.4,0.3144]
[1756969691580,2.13330541,4372.5,4372.1,0.3144]
[1756969691790,1.64212833,4372.1,4371.5,0.1248]
[1756969692187,1.64212833,4372.1,4372.0,0.4135]
[1756969692390,2.13395965,4372.1,4372.0,0.4135]
[1756969692983,0.49183132,4372.1,4372.0,0.4135]
[1756969693179,0.49183132,4372.1,4371.5,0.1248]
[1756969693379,1.64212833,4371.6,4371.5,0.4242]
[1756969693585,1.64212833,4371.6,4371.5,0.6327]
[1756969694590,2.13402169,4371.6,4371.5,0.4242]
[1756969694890,2.13402169,4371.6,4371.1,0.5079]
[1756969695091,0.49189336,4371.5,4371.2,0.5079]
[1756969695290,1.64212833,4371.3,4371.2,0.5079]
[1756969696295,2.13387686,4371.3,4371.2,0.5079]
[1756969696990,2.13387686,4371.3,4371.2,0.7055]
[1756969698188,1.64212833,4371.3,4371.2,0.7055]
[1756969699195,2.13369748,4371.3,4371.2,0.7055]
[1756969700097,1.64212833,4371.3,4371.2,0.7055]
[1756969700297,2.1336746,4371.3,4371.2,0.7055]
[1756969700899,2.1336746,4371.3,4371.2,0.2994]
[1756969701095,2.1336746,4371.3,4371.2,0.5079]
[1756969701300,2.1336746,4371.3,4371.2,0.7055]
[1756969709598,0.49154627,4371.3,4371.2,0.7055]
[1756969709799,5.15518499,4375.0,4372.5,0.1235]
[1756969709800,1.64212833,4372.8,4372.5,0.1235]
[1756969709999,0.03981773,4373.2,4373.0,0.1235]
[1756969710210,2.13379267,4373.1,4373.0,0.6314]
[1756969710400,2.13379267,4373.1,4373.0,0.4229]
[1756969710595,2.13379267,4373.1,4372.5,0.1235]
[1756969710801,1.64212833,4372.6,4372.5,0.332]
[1756969711398,1.64212833,4372.6,4372.5,0.6314]
[1756969713496,0.232,4373.2,4372.5,0.6314]
[1756969713703,0.232,4373.2,4373.0,0.829]
[1756969713704,0.49143962,4373.1,4373.0,0.829]
[1756969713897,2.13356795,4373.1,4373.0,0.829]
[1756969714103,0.49143962,4373.1,4373.0,0.829]
[1756969714604,2.13356795,4373.1,4373.0,0.829]
[1756969715304,0.49143962,4373.1,4373.0,0.829]
[1756969715505,1.64212833,4373.6,4373.5,0.829]
[1756969715704,2.13336362,4373.6,4373.5,0.829]
[1756969716008,0.232,4374.0,4373.5,0.829]
[1756969716203,1.64212833,4374.2,4374.1,0.5079]
[1756969716407,2.133019,4374.2,4374.1,0.7055]
[1756969717409,0.04714,4374.5,4374.2,0.2994]
[1756969717608,0.04714,4374.5,4374.4,0.2994]
[1756969717910,0.04714,4374.5,4374.4,0.7055]
[1756969722209,0.03979765,4375.6,4375.5,0.8172]
[1756969722412,2.00263746,4375.8,4375.7,0.4001]
[1756969722618,2.00263746,4375.8,4375.7,0.6982]
[1756969722912,0.232,4376.6,4376.2,0.2981]
[1756969723108,0.48857778,4376.5,4376.1,0.4956]
[1756969723314,0.232,4376.6,4376.2,0.1975]
[1756969723515,0.232,4376.6,4376.1,0.2981]
[1756969723709,0.232,4376.6,4376.1,0.1975]
[1756969724015,2.00263746,4376.2,4376.1,0.1975]
[1756969724214,2.00263746,4376.2,4376.1,0.4956]
[1756969724411,2.00263746,4376.2,4376.0,0.119]
[1756969724412,0.232,4376.6,4376.5,0.119]
[1756969724714,2.00263746,4376.6,4376.5,0.8172]
[1756969724916,2.00263746,4376.6,4376.5,0.4171]
[1756969726614,2.00263746,4376.6,4376.1,0.2981]
[1756969726810,2.00263746,4376.2,4376.1,0.2981]
[1756969727213,2.00263746,4376.2,4376.1,0.4956]
[1756969727614,2.00263746,4376.2,4376.1,0.6982]
[1756969728010,2.00263746,4376.2,4376.1,0.4001]
[1756969728207,2.00263746,4376.2,4376.1,0.6982]
[1756969729819,0.03978393,4376.9,4376.5,0.119]
[1756969730125,0.024,4378.3,4378.0,0.3165]
[1756969730420,2.00263746,4378.1,4378.0,0.6146]
[1756969730723,2.00263746,4378.1,4378.0,0.4171]
[1756969732422,2.00263746,4378.1,4378.0,0.6146]
[1756969732618,2.00263746,4378.1,4378.0,0.8172]
[1756969733317,0.024,4378.3,4378.1,0.2981]
[1756969733523,2.00263746,4378.4,4378.2,0.4001]
[1756969733724,2.00263746,4378.4,4378.3,0.6982]
[1756969733923,0.0397722,4378.5,4378.3,0.6982]
[1756969734126,2.00263746,4378.4,4378.3,0.6982]
[1756969734427,0.0397722,4378.5,4378.3,0.4001]
[1756969734622,0.0397722,4378.5,4378.4,0.6982]
[1756969735217,2.00263746,4378.6,4378.5,0.4171]
[1756969735423,0.232,4378.8,4378.5,0.8172]
[1756969735617,0.232,4378.8,4378.7,0.1975]
[1756969735923,0.232,4378.8,4378.7,0.6982]
[1756969736926,0.17,4378.9,4378.5,0.119]
[1756969736927,0.17,4378.9,4378.8,0.6982]
[1756969739926,0.17,4378.9,4378.8,0.2981]
[1756969740430,0.17,4378.9,4378.8,0.6982]
[1756969741021,0.17,4378.9,4378.8,0.4956]
[1756969741325,0.17,4378.9,4378.8,0.6982]
[1756969743623,0.17,4378.9,4378.8,0.4956]
[1756969744130,0.17,4378.9,4378.8,0.2981]
[1756969744929,0.17,4378.9,4378.8,0.4956]
[1756969747419,0.65685852,4378.9,4378.8,0.4956]
[1756969747825,4.65685852,4378.9,4378.6,0.2981]
[1756969748026,0.48685852,4378.8,4378.6,0.2981]
[1756969748922,0.48685852,4378.8,4378.7,0.2981]
[1756969749124,0.48685852,4378.8,4378.7,0.4956]
[1756969750233,0.48685852,4378.8,4378.7,0.2981]
[1756969750427,0.48685852,4378.8,4378.5,0.119]
[1756969750428,9.28085852,4378.8,4378.5,0.4171]
[1756969750629,0.48685852,4378.7,4378.6,0.2981]
[1756969751026,0.48685852,4378.7,4378.6,0.4956]
[1756969751227,0.48685852,4378.7,4378.6,0.2981]
[1756969751627,0.48685852,4378.7,4378.6,0.4956]
[1756969752937,0.71885852,4378.7,4378.6,0.4956]
[1756969754532,9.51285852,4378.7,4378.6,0.4956]
[1756969755239,10.74605356,4378.7,4378.6,0.4956]
[1756969757141,9.51285852,4378.7,4378.6,0.4956]
[1756969757541,11.51231745,4378.7,4378.6,0.4956]
[1756969760538,11.51231745,4378.7,4378.6,0.2981]
[1756969762246,13.15657751,4378.7,4378.6,0.2981]
[1756969764248,13.15657751,4378.7,4378.6,0.4876]
[1756969764737,11.51231745,4378.7,4378.6,0.4876]
[1756969765142,15.51231745,4378.7,4378.0,0.119]
[1756969765344,1.99945893,4378.1,4378.0,0.1175]
[1756969765551,0.48685852,4378.1,4378.0,0.8148]
[1756969765742,0.71885852,4378.1,4378.0,0.8148]
[1756969766048,0.48685852,4378.1,4378.0,0.8148]
[1756969766252,0.71885852,4378.1,4378.0,0.8148]
[1756969769554,0.48685852,4378.1,4378.0,0.8148]
[1756969769851,1.2315393,4378.5,4378.0,4.8148]
[1756969770050,1.2315393,4378.8,4378.7,0.3963]
[1756969770352,3.92959823,4378.8,4378.7,0.6973]
[1756969771550,2.69805893,4378.8,4378.7,0.6973]
[1756969772447,0.402,4378.9,4378.7,4.6973]
[1756969772652,0.17,4378.9,4378.8,0.6973]
[1756969773247,0.17,4378.9,4378.8,4.6973]
[1756969773451,0.17,4378.9,4378.8,4.92567]
[1756969773751,0.17,4378.9,4378.8,4.6973]
[1756969776052,0.17,4378.9,4378.8,0.6973]
[1756969776247,0.5608,4378.9,4378.8,0.6973]
[1756969776447,0.17,4378.9,4378.8,0.6973]
[1756969776852,0.3643,4378.9,4378.8,0.6973]
[1756969778358,2.50497284,4378.9,4378.8,0.6973]
[1756969778655,2.50497284,4378.9,4378.8,0.4905]
[1756969778957,2.50497284,4378.9,4378.8,0.6973]
[1756969781352,0.17,4378.9,4378.8,0.6973]
[1756969781552,1.80637284,4378.9,4378.8,0.6973]
[1756969781859,2.48564867,4378.9,4378.8,0.6973]
[1756969782046,2.68214867,4378.9,4378.8,0.6973]
[1756969783051,0.65497583,4378.9,4378.8,0.6973]
[1756969783850,0.86087583,4378.9,4378.8,0.6973]
[1756969785152,0.3759,4378.9,4378.8,0.6973]
[1756969785349,0.8714,4378.9,4378.8,0.6973]
[1756969785555,0.5739,4378.9,4378.8,0.6973]
[1756969786054,0.3759,4378.9,4378.8,0.6973]
[1756969788158,0.17,4378.9,4378.8,0.6973]
[1756969792968,2.01227284,4378.9,4378.8,0.6973]
[1756969793168,0.17,4378.9,4378.8,0.6973]
[1756969796073,2.04027284,4379.8,4379.7,0.1965]
[1756969796270,2.81988461,4379.8,4379.7,0.6966]
[1756969798180,2.81988461,4379.8,4379.7,0.1965]
[1756969798878,2.81988461,4379.8,4379.4,0.3008]
[1756969799072,2.45617284,4379.5,4379.1,0.3008]
[1756969799267,2.33777284,4379.2,4379.1,0.6966]
[1756969799473,2.81988461,4379.2,4379.1,0.6966]
[1756969799971,2.81988461,4379.2,4378.5,0.1175]
[1756969800172,0.7014,4378.8,4378.7,0.6966]
[1756969800576,0.2059,4378.8,4378.7,0.6966]
[1756969800777,0.68870996,4378.8,4378.7,0.6966]
[1756969800973,0.2059,4378.8,4378.7,0.6966]
[1756969801168,0.68878216,4378.8,4378.7,0.6966]
[1756969801368,0.2059,4378.8,4378.7,0.6966]
[1756969801670,1.18428955,4378.8,4378.7,0.4973]
[1756969801875,0.2059,4378.3,4378.2,0.9286]
[1756969802076,0.2059,4378.3,4378.2,0.6966]
[1756969802077,0.5034,4378.3,4378.2,0.6966]
[1756969803275,0.2059,4378.3,4378.2,0.6966]
[1756969803583,1.63637284,4378.9,4378.3,0.3008]
[1756969803879,1.18441725,4378.8,4378.7,0.4973]
[1756969804082,0.88691725,4378.8,4378.2,0.3008]
[1756969804281,0.5034,4378.2,4378.1,2.56497284]
[1756969804775,0.7014,4378.2,4378.1,0.6966]
[1756969806683,0.5034,4378.2,4378.1,0.6966]
[1756969806885,0.2059,4378.2,4378.1,0.6966]
[1756969807088,2.33777284,4378.2,4378.1,0.6966]
[1756969807376,2.33777284,4378.2,4376.0,0.1259]
[1756969807377,2.52323482,4378.2,4377.6,0.3008]
[1756969807584,0.7014,4377.7,4377.6,0.5001]
[1756969807782,0.5034,4377.7,4377.6,0.6966]
[1756969809084,0.1184,4378.5,4377.6,0.3958]
[1756969809284,1.63637284,4377.8,4377.7,0.3008]
[1756969809483,1.63637284,4377.8,4377.1,32.906]
[1756969809484,0.7014,4377.4,4377.3,0.7293]
[1756969809679,1.84227284,4377.9,4377.8,0.1965]
[1756969809985,2.52300039,4377.9,4377.8,0.4973]
[1756969810185,0.88662755,4377.9,4377.8,0.6966]
[1756969810381,0.68862755,4377.9,4377.8,0.6966]
[1756969811588,1.18412755,4377.9,4377.8,0.6966]
[1756969812282,0.7014,4377.9,4377.8,0.6966]
[1756969813587,2.04027284,4377.9,4377.1,34.54237284]
[1756969813787,0.1925,4377.4,4377.3,0.6807]
[1756969814292,0.315,4377.6,4377.3,2.02667284]
[1756969814486,0.1925,4377.5,4377.4,0.6807]
[1756969814885,0.1198,4378.0,4377.4,0.6807]
[1756969815088,0.71,4377.9,4377.8,0.6807]
[1756969815388,0.1925,4377.9,4377.8,0.6807]
[1756969815588,0.315,4378.4,4377.8,0.3903]
[1756969815781,0.315,4378.4,4378.3,0.2904]
[1756969815984,0.315,4378.4,4378.3,0.6807]
[1756969816385,0.5075,4378.4,4378.3,0.6807]
[1756969819285,0.71,4378.4,4378.3,0.6807]
[1756969828298,0.395,4378.4,4377.8,1.23299932]
[1756969828492,0.395,4377.8,4377.6,1.23299932]
[1756969828691,1.63637284,4377.9,4377.6,1.23299932]
[1756969828692,0.71,4377.7,4377.6,0.9127]
[1756969829394,0.5075,4377.7,4377.6,0.9127]
[1756969831303,0.71,4377.7,4377.6,0.9127]
[1756969833707,0.71,4377.7,4377.6,0.6807]
[1756969833902,0.71,4377.7,4377.6,0.9127]
[1756969835113,0.71,4377.7,4377.6,0.6807]
[1756969835296,0.71,4377.7,4377.6,0.9127]
[1756969835911,0.71,4377.7,4377.6,0.6807]
[1756969836111,0.71,4377.7,4377.6,0.9127]
[1756969836409,0.395,4377.5,4377.4,0.4309]
[1756969836706,0.71,4377.5,4377.4,0.9127]
[1756969837105,0.1925,4377.5,4377.4,2.54907284]
[1756969837307,0.71,4377.9,4377.8,0.6807]
[1756969837516,1.19460846,4377.9,4377.8,0.6807]
[1756969838409,1.19460846,4377.9,4377.1,1.23299932]
[1756969838605,1.19460846,4377.9,4377.0,0.1259]
[1756969838606,0.395,4377.4,4377.3,2.02667284]
[1756969838806,0.71,4377.4,4377.3,2.02667284]
[1756969839006,0.71,4377.4,4377.3,0.3903]
[1756969839309,0.315,4377.9,4377.3,2.25867284]
[1756969839505,0.99205332,4377.8,4377.7,0.6807]
[1756969839811,1.19455332,4377.8,4377.7,0.6807]
[1756969840509,0.315,4378.4,4377.8,0.2904]
[1756969840708,0.87952286,4378.3,4378.2,0.3903]
[1756969840914,1.19452286,4378.3,4378.2,0.6807]
[1756969841104,8.794,4378.8,4378.2,2.38968359]
[1756969841304,0.5075,4378.6,4378.5,0.5158]
[1756969841610,0.9919568,4378.6,4378.5,0.8062]
[1756969842012,1.1944568,4378.6,4378.5,0.8062]
[1756969842310,0.71,4378.6,4378.5,0.6807]
[1756969844708,0.71,4378.6,4378.5,0.7983]
[1756969845710,8.9124,4379.0,4378.5,0.7983]
[1756969845912,0.305,4379.1,4378.8,2.39238359]
[1756969846212,0.5006,4379.1,4379.0,0.8111]
[1756969847211,0.6983,4379.1,4379.0,0.6935]
[1756969849713,0.6983,4379.1,4379.0,0.8111]
[1756969850315,0.305,4379.4,4379.0,0.5106]
[1756969850512,0.98443873,4379.3,4379.2,0.6935]
[1756969850718,0.67943873,4379.3,4379.2,0.6935]
[1756969851515,1.18213873,4379.3,4379.2,0.6935]
[1756969852019,0.5181,4379.0,4378.9,0.3005]
[1756969852320,0.5181,4379.0,4378.6,0.5325]
[1756969852321,0.8231,4379.0,4378.6,0.5325]
[1756969852510,0.6983,4378.2,4378.1,0.393]
[1756969853115,0.6983,4378.2,4378.1,0.6935]
[1756969853715,0.1956,4378.2,4378.1,0.6935]
[1756969853914,0.305,4378.9,4378.2,0.3005]
[1756969854221,0.5006,4378.3,4378.2,0.6935]
[1756969854519,0.6983,4378.3,4378.2,0.6935]
[1756969855822,0.1956,4378.3,4378.2,0.6935]
[1756969856223,0.5006,4378.3,4378.2,0.6935]
[1756969856525,0.305,4378.9,4378.2,0.393]
[1756969856724,0.6983,4378.8,4378.7,0.6935]
[1756969857120,0.305,4379.4,4378.8,0.3005]
[1756969857324,0.98576136,4379.3,4379.2,0.6935]
[1756969857524,1.18346136,4379.3,4379.2,0.6935]
[1756969858423,0.98576136,4379.3,4379.2,0.6935]
[1756969859019,1.18346136,4379.3,4379.2,0.6935]
[1756969861020,0.039758,4379.8,4378.5,2.11698359]
[1756969861021,0.1956,4378.6,4378.5,0.5106]
[1756969861220,0.6983,4378.6,4378.5,0.5106]
[1756969861423,0.6983,4378.6,4378.5,0.393]
[1756969861720,0.305,4379.3,4378.6,0.3005]
[1756969861920,0.6983,4379.3,4379.2,0.4947]
[1756969862120,1.18335067,4379.3,4379.2,0.6935]
[1756969862321,0.6983,4379.3,4379.2,0.6935]
[1756969864625,0.305,4379.9,4379.3,0.3005]
[1756969864831,0.1956,4379.4,4379.3,0.1942]
[1756969865124,1.18337794,4379.4,4379.3,0.393]
[1756969865324,1.18337794,4379.4,4378.5,0.1176]
[1756969865325,3.18276153,4379.4,4378.7,0.232]
[1756969865526,0.6983,4378.7,4378.6,0.7197]
[1756969865740,0.3933,4378.7,4378.1,0.3005]
[1756969865923,0.6983,4378.2,4378.1,0.9255]
[1756969866724,0.305,4378.5,4378.1,0.9255]
[1756969867029,0.6983,4378.3,4378.2,0.6935]
[1756969867224,0.1956,4378.3,4378.2,0.6935]
[1756969867724,0.5006,4378.3,4378.2,0.6935]
[1756969867926,0.6983,4378.3,4378.2,0.6935]
[1756969868430,0.6983,4378.3,4378.2,0.9255]
[1756969869529,0.3933,4378.2,4378.1,0.1942]
[1756969869830,0.6983,4378.2,4378.1,0.232]
[1756969870031,0.6983,4378.2,4378.1,0.4262]
[1756969870233,0.6983,4378.2,4378.1,0.1942]
[1756969870433,0.6983,4378.2,4378.1,0.6935]
[1756969874025,0.6983,4378.2,4378.1,0.393]
[1756969874436,0.6983,4378.2,4378.1,0.1942]
[1756969874936,0.6983,4378.2,4378.1,0.4914]
[1756969875125,0.6983,4378.2,4378.1,0.6981]
[1756969875731,1.99938359,4378.9,4378.1,0.4009]
[1756969875934,0.1934,4378.3,4378.2,0.2972]
[1756969876133,0.4847,4378.3,4378.2,0.7067]
[1756969876527,0.2913,4378.7,4378.2,0.7067]
[1756969876729,0.2913,4378.8,4378.3,0.2972]
[1756969877034,0.1248,4379.0,4378.3,0.4348]
[1756969877035,0.3985,4378.4,4378.3,0.4348]
[1756969877236,0.3985,4378.4,4378.3,0.9387]